[Event "*** SCC Grand Prix: Titled Tuesday Blitz"]
[Site "Chess.com"]
[Date "2020.07.14"]
[Round "1"]
[White "memer5334"]
[Black "x-3738459472"]
[Result "1-0"]
[WhiteElo "2242"]
[BlackElo "2540"]
[TimeControl "180+1"]
[EndTime "10:05:16 PDT"]
[Termination "memer5334 won by resignation"]

1. d4 {[%clk 0:02:59.8]} 1... Nf6 {[%clk 0:02:58.9]} 2. c4 {[%clk 0:02:58.3]}
2... c5 {[%clk 0:02:59]} 3. d5 {[%clk 0:02:57.9]} 3... e5 {[%clk 0:02:59.2]} 4.
dxe6 {[%clk 0:02:55.6]} 4... fxe6 {[%clk 0:02:58.5]} 5. Nc3 {[%clk 0:02:55.7]}
5... d5 {[%clk 0:02:58.3]} 6. cxd5 {[%clk 0:02:53.9]} 6... exd5 {[%clk
0:02:58.3]} 7. Bg5 {[%clk 0:02:53.8]} 7... d4 {[%clk 0:02:43]} 8. Ne4 {[%clk
0:02:51]} 8... Be7 {[%clk 0:02:38.5]} 9. Nxf6+ {[%clk 0:02:49.3]} 9... Bxf6
{[%clk 0:02:34.9]} 10. Bxf6 {[%clk 0:02:49.5]} 10... Qxf6 {[%clk 0:02:30]} 11.
Qc1 {[%clk 0:02:45.4]} 11... O-O {[%clk 0:02:28.4]} 12. Nf3 {[%clk 0:02:45.2]}
12... Bg4 {[%clk 0:02:23]} 13. h3 {[%clk 0:02:35.4]} 13... Bxf3 {[%clk
0:02:21.5]} 14. exf3 {[%clk 0:02:30]} 14... Re8+ {[%clk 0:02:21]} 15. Be2 {[%clk
0:02:30.2]} 15... Nc6 {[%clk 0:01:52.8]} 16. Qc4+ {[%clk 0:02:26.2]} 16... Kh8
{[%clk 0:01:49.7]} 17. O-O {[%clk 0:02:26]} 17... Ne5 {[%clk 0:01:43.1]} 18. Qa4
{[%clk 0:01:52.6]} 18... d3 {[%clk 0:01:40.3]} 19. Bd1 {[%clk 0:01:47.8]} 19...
a6 {[%clk 0:01:34.6]} 20. f4 {[%clk 0:01:43.2]} 20... Ng6 {[%clk 0:01:33.4]} 21.
Bf3 {[%clk 0:01:37.1]} 21... b5 {[%clk 0:01:31.6]} 22. Qa3 {[%clk 0:01:36.2]}
22... Rac8 {[%clk 0:01:25.3]} 23. Qxd3 {[%clk 0:01:28.6]} 23... Nxf4 {[%clk
0:01:24.1]} 24. Qd7 {[%clk 0:01:24]} 24... Nxh3+ {[%clk 0:01:17.8]} 25. Qxh3
{[%clk 0:01:23.4]} 25... Rcd8 {[%clk 0:01:16.3]} 26. Rad1 {[%clk 0:01:21]} 26...
Qxb2 {[%clk 0:01:15.8]} 27. Be4 {[%clk 0:01:04.9]} 27... g6 {[%clk 0:01:12.2]}
28. Bxg6 {[%clk 0:01:03.4]} 1-0

[Event "*** SCC Grand Prix: Titled Tuesday Blitz"]
[Site "Chess.com"]
[Date "2020.07.14"]
[Round "1"]
[White "talman67"]
[Black "savagemedusa"]
[Result "1-0"]
[WhiteElo "2488"]
[BlackElo "2101"]
[TimeControl "180+1"]
[EndTime "10:05:17 PDT"]
[Termination "talman67 won by resignation"]

1. e4 {[%clk 0:03:00.9]} 1... g6 {[%clk 0:02:57.2]} 2. d4 {[%clk 0:03:00.5]}
2... Bg7 {[%clk 0:02:56.5]} 3. Nc3 {[%clk 0:03:01.1]} 3... d6 {[%clk 0:02:54.5]}
4. Be3 {[%clk 0:03:00.4]} 4... a6 {[%clk 0:02:49.3]} 5. Qd2 {[%clk 0:03:00.5]}
5... b5 {[%clk 0:02:47.9]} 6. f3 {[%clk 0:03:01]} 6... Nd7 {[%clk 0:02:45]} 7.
h4 {[%clk 0:03:00.9]} 7... h5 {[%clk 0:02:44.1]} 8. Nh3 {[%clk 0:03:00.8]} 8...
Bb7 {[%clk 0:02:43.1]} 9. Ng5 {[%clk 0:02:58.9]} 9... Rc8 {[%clk 0:02:40]} 10.
O-O-O {[%clk 0:02:50.2]} 10... c5 {[%clk 0:02:23.6]} 11. dxc5 {[%clk 0:02:49.8]}
11... Nxc5 {[%clk 0:02:23.4]} 12. a3 {[%clk 0:02:49]} 12... Qa5 {[%clk
0:01:54.4]} 13. Kb1 {[%clk 0:02:30]} 13... b4 {[%clk 0:01:37.6]} 14. Na2 {[%clk
0:02:26.5]} 14... Bxb2 {[%clk 0:01:22.6]} 15. Kxb2 {[%clk 0:02:19.5]} 15...
Qxa3+ {[%clk 0:01:19.8]} 16. Kb1 {[%clk 0:02:08.9]} 16... Na4 {[%clk 0:01:03.5]}
17. Qc1 {[%clk 0:01:42.5]} 17... Qxc1+ {[%clk 0:00:31.1]} 18. Bxc1 {[%clk
0:01:43.4]} 18... b3 {[%clk 0:00:31.3]} 19. cxb3 {[%clk 0:01:42.7]} 19... Nc5
{[%clk 0:00:30.1]} 20. Bc4 {[%clk 0:01:41.6]} 20... e6 {[%clk 0:00:29.3]} 21.
Bb2 {[%clk 0:01:41.7]} 21... Rh6 {[%clk 0:00:28.1]} 22. Rxd6 {[%clk 0:01:40]}
22... Ne7 {[%clk 0:00:26.9]} 23. Rhd1 {[%clk 0:01:38.9]} 23... Nc6 {[%clk
0:00:24.9]} 24. Bf6 {[%clk 0:01:36.2]} 24... a5 {[%clk 0:00:22.6]} 25. Bb5
{[%clk 0:01:34.4]} 25... Nxb3 {[%clk 0:00:21.1]} 26. Rd8+ {[%clk 0:01:32.8]} 1-0

[Event "*** SCC Grand Prix: Titled Tuesday Blitz"]
[Site "Chess.com"]
[Date "2020.07.14"]
[Round "1"]
[White "JesseKraai"]
[Black "KratosKrieg"]
[Result "1-0"]
[WhiteElo "2462"]
[BlackElo "1968"]
[TimeControl "180+1"]
[EndTime "10:05:22 PDT"]
[Termination "JesseKraai won by resignation"]

1. d4 {[%clk 0:02:43.3]} 1... d5 {[%clk 0:02:57.8]} 2. c4 {[%clk 0:02:42.9]}
2... e6 {[%clk 0:02:58]} 3. Nc3 {[%clk 0:02:42.4]} 3... Nf6 {[%clk 0:02:58.5]}
4. cxd5 {[%clk 0:02:40.4]} 4... Nxd5 {[%clk 0:02:58.4]} 5. Nf3 {[%clk
0:02:39.5]} 5... c5 {[%clk 0:02:45.8]} 6. e3 {[%clk 0:02:38.4]} 6... Be7 {[%clk
0:02:37.8]} 7. Bd3 {[%clk 0:02:38]} 7... O-O {[%clk 0:02:35.4]} 8. O-O {[%clk
0:02:37.8]} 8... Nc6 {[%clk 0:02:35.3]} 9. Qe2 {[%clk 0:02:34.9]} 9... cxd4
{[%clk 0:02:32.3]} 10. exd4 {[%clk 0:02:34.2]} 10... Bf6 {[%clk 0:02:19]} 11.
Rd1 {[%clk 0:02:28.3]} 11... a6 {[%clk 0:01:15.2]} 12. Qe4 {[%clk 0:02:21.4]}
12... g6 {[%clk 0:01:07.1]} 13. Bh6 {[%clk 0:02:20.4]} 13... Re8 {[%clk
0:01:06.6]} 14. Rac1 {[%clk 0:02:08.3]} 14... Ncb4 {[%clk 0:00:49.3]} 15. Bb1
{[%clk 0:02:01.9]} 15... b5 {[%clk 0:00:45.7]} 16. a3 {[%clk 0:01:56.1]} 16...
Nc6 {[%clk 0:00:39.4]} 17. Nxd5 {[%clk 0:01:28.5]} 17... exd5 {[%clk 0:00:36.1]}
18. Qf4 {[%clk 0:01:28.4]} 18... Bb7 {[%clk 0:00:27.9]} 19. h4 {[%clk 0:01:24]}
19... Qd7 {[%clk 0:00:13.6]} 20. Qxf6 {[%clk 0:01:22]} 1-0

[Event "*** SCC Grand Prix: Titled Tuesday Blitz"]
[Site "Chess.com"]
[Date "2020.07.14"]
[Round "1"]
[White "DortmundCity"]
[Black "c_r_e_e_p_e_r"]
[Result "1-0"]
[WhiteElo "2615"]
[BlackElo "2306"]
[TimeControl "180+1"]
[EndTime "10:05:24 PDT"]
[Termination "DortmundCity won by resignation"]

1. e4 {[%clk 0:03:00.9]} 1... c5 {[%clk 0:02:59.6]} 2. Be2 {[%clk 0:02:57.4]}
2... Nc6 {[%clk 0:02:59.1]} 3. f4 {[%clk 0:02:57.4]} 3... e6 {[%clk 0:02:52]} 4.
Nf3 {[%clk 0:02:56]} 4... a6 {[%clk 0:02:49.6]} 5. O-O {[%clk 0:02:55.8]} 5...
b5 {[%clk 0:02:49.7]} 6. d3 {[%clk 0:02:55.3]} 6... Bb7 {[%clk 0:02:49.9]} 7. c3
{[%clk 0:02:55.4]} 7... d6 {[%clk 0:02:39.9]} 8. Be3 {[%clk 0:02:53.5]} 8... Nf6
{[%clk 0:02:36.7]} 9. Kh1 {[%clk 0:02:50.4]} 9... Be7 {[%clk 0:02:36.5]} 10.
Nbd2 {[%clk 0:02:40.3]} 10... O-O {[%clk 0:02:36.2]} 11. Qe1 {[%clk 0:02:26.1]}
11... Qc7 {[%clk 0:02:31.3]} 12. Rc1 {[%clk 0:02:12.2]} 12... Rac8 {[%clk
0:02:27]} 13. Qg3 {[%clk 0:02:08.2]} 13... Rfe8 {[%clk 0:02:19]} 14. f5 {[%clk
0:01:57.8]} 14... exf5 {[%clk 0:01:57.3]} 15. Nh4 {[%clk 0:01:50.7]} 15... fxe4
{[%clk 0:01:34.6]} 16. Nf5 {[%clk 0:01:42.2]} 16... Bf8 {[%clk 0:01:04]} 17.
Nxg7 {[%clk 0:01:41.4]} 17... Bxg7 {[%clk 0:00:10.7]} 18. Bh6 {[%clk 0:01:40]}
18... Kf8 {[%clk 0:00:11.1]} 19. Qxg7+ {[%clk 0:01:35.9]} 19... Ke7 {[%clk
0:00:11.4]} 20. Qxf6+ {[%clk 0:01:36.8]} 20... Kd7 {[%clk 0:00:11.6]} 21. Bg4+
{[%clk 0:01:35]} 21... Re6 {[%clk 0:00:12]} 22. Qxf7+ {[%clk 0:01:33.7]} 22...
Ne7 {[%clk 0:00:11.2]} 23. Qxe6+ {[%clk 0:01:33.1]} 23... Kc6 {[%clk 0:00:11.6]}
24. Nxe4 {[%clk 0:01:29]} 1-0

[Event "*** SCC Grand Prix: Titled Tuesday Blitz"]
[Site "Chess.com"]
[Date "2020.07.14"]
[Round "1"]
[White "wonderfultime"]
[Black "TomasKapitanchuk"]
[Result "1-0"]
[WhiteElo "2958"]
[BlackElo "2440"]
[TimeControl "180+1"]
[EndTime "10:05:25 PDT"]
[Termination "wonderfultime won by resignation"]

1. d4 {[%clk 0:02:54.5]} 1... Nf6 {[%clk 0:02:59.8]} 2. Nf3 {[%clk 0:02:53]}
2... e6 {[%clk 0:03:00]} 3. Bf4 {[%clk 0:02:53.3]} 3... b6 {[%clk 0:02:54.5]} 4.
e3 {[%clk 0:02:52.3]} 4... c5 {[%clk 0:02:54.4]} 5. Bd3 {[%clk 0:02:51.7]} 5...
Bb7 {[%clk 0:02:54.4]} 6. O-O {[%clk 0:02:51.6]} 6... Be7 {[%clk 0:02:54.6]} 7.
c3 {[%clk 0:02:51.9]} 7... O-O {[%clk 0:02:54.6]} 8. Nbd2 {[%clk 0:02:52.2]}
8... d6 {[%clk 0:02:54.9]} 9. h3 {[%clk 0:02:51.5]} 9... cxd4 {[%clk 0:02:55]}
10. cxd4 {[%clk 0:02:50.9]} 10... Nbd7 {[%clk 0:02:55.1]} 11. Rc1 {[%clk
0:02:51.2]} 11... Rc8 {[%clk 0:02:54.7]} 12. Qe2 {[%clk 0:02:41.3]} 12... Rxc1
{[%clk 0:02:51.9]} 13. Rxc1 {[%clk 0:02:39.9]} 13... Qa8 {[%clk 0:02:44]} 14.
Nc4 {[%clk 0:02:33]} 14... Rc8 {[%clk 0:02:43.3]} 15. Rc2 {[%clk 0:02:31.8]}
15... Nd5 {[%clk 0:02:29.5]} 16. Bg5 {[%clk 0:01:50]} 16... f6 {[%clk
0:02:14.1]} 17. Bf4 {[%clk 0:01:43]} 17... e5 {[%clk 0:01:18.2]} 18. Bf5 {[%clk
0:01:41.8]} 18... Rc7 {[%clk 0:01:10.6]} 19. Bg3 {[%clk 0:01:24.6]} 19... Nf8
{[%clk 0:01:02.3]} 20. Na3 {[%clk 0:01:14.9]} 20... Qd8 {[%clk 0:00:54.4]} 21.
Nb5 {[%clk 0:01:11.1]} 21... Rxc2 {[%clk 0:00:51.1]} 22. Bxc2 {[%clk 0:01:12]}
22... a6 {[%clk 0:00:50.1]} 23. Nc3 {[%clk 0:01:12.3]} 23... Qc7 {[%clk
0:00:44.6]} 24. Bb3 {[%clk 0:01:12.1]} 1-0

[Event "*** SCC Grand Prix: Titled Tuesday Blitz"]
[Site "Chess.com"]
[Date "2020.07.14"]
[Round "1"]
[White "blitzking1729"]
[Black "shav3184"]
[Result "1-0"]
[WhiteElo "2581"]
[BlackElo "2268"]
[TimeControl "180+1"]
[EndTime "10:05:25 PDT"]
[Termination "blitzking1729 won by resignation"]

1. c4 {[%clk 0:03:00.2]} 1... Nf6 {[%clk 0:02:58.2]} 2. Nc3 {[%clk 0:02:59.7]}
2... e6 {[%clk 0:02:58.4]} 3. e4 {[%clk 0:02:59.4]} 3... d5 {[%clk 0:02:58.5]}
4. cxd5 {[%clk 0:02:59.6]} 4... exd5 {[%clk 0:02:58]} 5. e5 {[%clk 0:03:00.1]}
5... Ne4 {[%clk 0:02:56.8]} 6. d4 {[%clk 0:02:58.7]} 6... Bb4 {[%clk 0:02:42.4]}
7. Qb3 {[%clk 0:02:46]} 7... Nc6 {[%clk 0:02:39.3]} 8. Bb5 {[%clk 0:02:42.1]}
8... O-O {[%clk 0:02:32.6]} 9. Ne2 {[%clk 0:02:40.5]} 9... Qh4 {[%clk
0:01:47.2]} 10. O-O {[%clk 0:02:35.8]} 10... Bxc3 {[%clk 0:01:46]} 11. bxc3
{[%clk 0:02:34.8]} 11... Be6 {[%clk 0:01:45.5]} 12. f3 {[%clk 0:02:23.5]} 12...
Ng5 {[%clk 0:01:36.4]} 13. f4 {[%clk 0:02:20.7]} 13... Ne4 {[%clk 0:01:20.3]}
14. f5 {[%clk 0:02:19.5]} 14... a6 {[%clk 0:00:30.5]} 15. Bxc6 {[%clk
0:02:09.3]} 15... bxc6 {[%clk 0:00:30.6]} 16. fxe6 {[%clk 0:02:07.7]} 16... fxe6
{[%clk 0:00:31.5]} 17. Be3 {[%clk 0:02:05.8]} 17... Qg4 {[%clk 0:00:31.2]} 18.
Qc2 {[%clk 0:02:03.1]} 18... h5 {[%clk 0:00:28.3]} 19. c4 {[%clk 0:01:51.5]}
19... h4 {[%clk 0:00:26.5]} 20. h3 {[%clk 0:01:48]} 20... Qg6 {[%clk 0:00:19.3]}
21. cxd5 {[%clk 0:01:46.7]} 21... cxd5 {[%clk 0:00:19.5]} 22. Nf4 {[%clk
0:01:45.5]} 22... Qf5 {[%clk 0:00:17.6]} 23. Nxd5 {[%clk 0:01:37.4]} 1-0

[Event "*** SCC Grand Prix: Titled Tuesday Blitz"]
[Site "Chess.com"]
[Date "2020.07.14"]
[Round "1"]
[White "qingaunlee"]
[Black "jacky72"]
[Result "0-1"]
[WhiteElo "2339"]
[BlackElo "2656"]
[TimeControl "180+1"]
[EndTime "10:05:27 PDT"]
[Termination "jacky72 won by checkmate"]

1. e4 {[%clk 0:03:00.9]} 1... e5 {[%clk 0:02:58.5]} 2. Nf3 {[%clk 0:03:00.4]}
2... Nc6 {[%clk 0:02:56.8]} 3. Bb5 {[%clk 0:03:00.4]} 3... a6 {[%clk 0:02:56.6]}
4. Ba4 {[%clk 0:03:00.5]} 4... Nf6 {[%clk 0:02:57.2]} 5. O-O {[%clk 0:02:59.9]}
5... Be7 {[%clk 0:02:57.4]} 6. Re1 {[%clk 0:02:58]} 6... b5 {[%clk 0:02:57.5]}
7. Bb3 {[%clk 0:02:57.4]} 7... O-O {[%clk 0:02:58.4]} 8. a4 {[%clk 0:02:55.9]}
8... Bb7 {[%clk 0:02:57.2]} 9. d3 {[%clk 0:02:53.7]} 9... d5 {[%clk 0:02:57]}
10. exd5 {[%clk 0:02:52.7]} 10... Nxd5 {[%clk 0:02:57.9]} 11. Nxe5 {[%clk
0:02:52.6]} 11... Nxe5 {[%clk 0:02:58.8]} 12. Rxe5 {[%clk 0:02:52.5]} 12... Qd6
{[%clk 0:02:52.5]} 13. d4 {[%clk 0:02:37.7]} 13... Bf6 {[%clk 0:02:50.2]} 14.
Re1 {[%clk 0:02:31.5]} 14... Rfe8 {[%clk 0:02:46.3]} 15. Be3 {[%clk 0:02:10.9]}
15... Rad8 {[%clk 0:02:33.1]} 16. Nd2 {[%clk 0:01:56.5]} 16... Nb4 {[%clk
0:02:16.9]} 17. c3 {[%clk 0:01:47.6]} 17... Nd3 {[%clk 0:02:16.5]} 18. Re2
{[%clk 0:01:45.6]} 18... Nxb2 {[%clk 0:02:09.4]} 19. Qc2 {[%clk 0:01:39.6]}
19... Nc4 {[%clk 0:02:09.4]} 20. axb5 {[%clk 0:01:26.5]} 20... axb5 {[%clk
0:02:02.9]} 21. Bxc4 {[%clk 0:01:11.5]} 21... bxc4 {[%clk 0:02:01.6]} 22. Rae1
{[%clk 0:01:11.5]} 22... h6 {[%clk 0:01:50.7]} 23. f3 {[%clk 0:01:00.5]} 23...
Bh4 {[%clk 0:01:47.4]} 24. Bf4 {[%clk 0:00:54.6]} 24... Rxe2 {[%clk 0:01:45.8]}
25. Bxd6 {[%clk 0:00:51.4]} 25... Rxe1+ {[%clk 0:01:39]} 26. Nf1 {[%clk
0:00:51.5]} 26... cxd6 {[%clk 0:01:39.4]} 27. g3 {[%clk 0:00:45.4]} 27... Ra8
{[%clk 0:01:38.7]} 28. gxh4 {[%clk 0:00:41.4]} 28... Raa1 {[%clk 0:01:37.5]} 29.
Qb2 {[%clk 0:00:36.7]} 29... Rxf1+ {[%clk 0:01:37.4]} 30. Kg2 {[%clk 0:00:36.4]}
30... Bxf3+ {[%clk 0:01:37]} 31. Kg3 {[%clk 0:00:35.9]} 31... Be4 {[%clk
0:01:34.5]} 32. Qb8+ {[%clk 0:00:34.8]} 32... Kh7 {[%clk 0:01:34.7]} 33. Qxd6
{[%clk 0:00:34.6]} 33... Rf3+ {[%clk 0:01:35.6]} 34. Kg4 {[%clk 0:00:33.5]}
34... Rg1+ {[%clk 0:01:30.5]} 35. Kh5 {[%clk 0:00:32.8]} 35... Rf5# {[%clk
0:01:30.8]} 0-1

[Event "*** SCC Grand Prix: Titled Tuesday Blitz"]
[Site "Chess.com"]
[Date "2020.07.14"]
[Round "1"]
[White "Zhani-Z"]
[Black "IMHansNiemann"]
[Result "0-1"]
[WhiteElo "2429"]
[BlackElo "2871"]
[TimeControl "180+1"]
[EndTime "10:05:28 PDT"]
[Termination "IMHansNiemann won by resignation"]

1. e4 {[%clk 0:03:00.5]} 1... e6 {[%clk 0:02:54.7]} 2. d4 {[%clk 0:02:59.8]}
2... d5 {[%clk 0:02:54.9]} 3. Bd3 {[%clk 0:03:00]} 3... dxe4 {[%clk 0:02:49.4]}
4. Bxe4 {[%clk 0:03:00.1]} 4... Nf6 {[%clk 0:02:49.7]} 5. Bf3 {[%clk 0:03:00.7]}
5... c5 {[%clk 0:02:50.1]} 6. Ne2 {[%clk 0:03:01.2]} 6... Nc6 {[%clk 0:02:50.1]}
7. Be3 {[%clk 0:03:01.3]} 7... e5 {[%clk 0:02:49.8]} 8. Bxc6+ {[%clk 0:02:57.9]}
8... bxc6 {[%clk 0:02:48.8]} 9. dxe5 {[%clk 0:02:58.2]} 9... Qxd1+ {[%clk
0:02:48.5]} 10. Kxd1 {[%clk 0:02:58.7]} 10... Ng4 {[%clk 0:02:48.7]} 11. Nd2
{[%clk 0:02:59.3]} 11... Bf5 {[%clk 0:02:35]} 12. Nc3 {[%clk 0:02:44.2]} 12...
Nxe3+ {[%clk 0:02:26.4]} 13. fxe3 {[%clk 0:02:43.8]} 13... Be7 {[%clk
0:02:26.7]} 14. Nde4 {[%clk 0:02:28.5]} 14... Rb8 {[%clk 0:02:22.7]} 15. b3
{[%clk 0:02:27.7]} 15... Rb4 {[%clk 0:02:22.2]} 16. Ng3 {[%clk 0:02:21.5]} 16...
Bg6 {[%clk 0:02:21.9]} 17. Kc1 {[%clk 0:01:23.1]} 17... h5 {[%clk 0:02:18.2]}
18. Kb2 {[%clk 0:01:19.2]} 18... h4 {[%clk 0:02:17.5]} 19. Nge2 {[%clk
0:01:19.1]} 19... Rh5 {[%clk 0:02:15.4]} 20. Nf4 {[%clk 0:01:17.7]} 20... Rxe5
{[%clk 0:02:13.1]} 21. Nxg6 {[%clk 0:01:15.1]} 21... fxg6 {[%clk 0:02:14]} 22.
e4 {[%clk 0:01:13]} 22... Bf6 {[%clk 0:02:13.8]} 23. a3 {[%clk 0:01:10.4]} 23...
Rd4 {[%clk 0:02:12.9]} 24. Rae1 {[%clk 0:00:30]} 24... Rd2 {[%clk 0:02:09.7]}
25. Rhg1 {[%clk 0:00:30.1]} 25... Re6 {[%clk 0:01:56]} 26. e5 {[%clk 0:00:29.4]}
26... Bxe5 {[%clk 0:01:53.9]} 27. Kc1 {[%clk 0:00:29.6]} 27... Rd7 {[%clk
0:01:47.1]} 28. Ne4 {[%clk 0:00:28.2]} 28... Bf4+ {[%clk 0:01:42.5]} 29. Kb1
{[%clk 0:00:26.4]} 29... Rde7 {[%clk 0:01:43.4]} 30. g3 {[%clk 0:00:23.8]} 30...
hxg3 {[%clk 0:01:40.6]} 31. hxg3 {[%clk 0:00:24.7]} 31... Bc7 {[%clk 0:01:40.2]}
0-1

[Event "*** SCC Grand Prix: Titled Tuesday Blitz"]
[Site "Chess.com"]
[Date "2020.07.14"]
[Round "1"]
[White "Kolle05"]
[Black "wannabe2700"]
[Result "1-0"]
[WhiteElo "2365"]
[BlackElo "2654"]
[TimeControl "180+1"]
[EndTime "10:05:28 PDT"]
[Termination "Kolle05 won by resignation"]

1. e4 {[%clk 0:02:58.5]} 1... c6 {[%clk 0:02:59.1]} 2. Nf3 {[%clk 0:02:57.7]}
2... d5 {[%clk 0:02:59.7]} 3. Nc3 {[%clk 0:02:57.6]} 3... g6 {[%clk 0:02:58.6]}
4. d4 {[%clk 0:02:56.7]} 4... Bg7 {[%clk 0:02:55.4]} 5. Be2 {[%clk 0:02:44.1]}
5... Bg4 {[%clk 0:02:54.5]} 6. O-O {[%clk 0:02:29.6]} 6... dxe4 {[%clk
0:02:53.4]} 7. Nxe4 {[%clk 0:02:29.2]} 7... Bxf3 {[%clk 0:02:52.8]} 8. Bxf3
{[%clk 0:02:30.1]} 8... Qxd4 {[%clk 0:02:52.1]} 9. Qe2 {[%clk 0:02:29.7]} 9...
Nd7 {[%clk 0:02:45.5]} 10. Rd1 {[%clk 0:02:25.4]} 10... Qe5 {[%clk 0:02:45.2]}
11. Be3 {[%clk 0:02:09.9]} 11... Ngf6 {[%clk 0:02:38.2]} 12. Bd4 {[%clk
0:01:52.9]} 12... Qc7 {[%clk 0:02:35.6]} 13. Bxf6 {[%clk 0:01:36.9]} 13... Bxf6
{[%clk 0:02:25.9]} 14. Rxd7 {[%clk 0:01:28.4]} 14... Kxd7 {[%clk 0:02:19.5]} 15.
Bg4+ {[%clk 0:01:27.9]} 15... Ke8 {[%clk 0:02:17.9]} 16. Nxf6+ {[%clk
0:01:27.1]} 16... Kf8 {[%clk 0:02:18.2]} 17. Nd7+ {[%clk 0:01:24.9]} 17... Kg7
{[%clk 0:02:11]} 18. Qxe7 {[%clk 0:01:24.4]} 18... Rhe8 {[%clk 0:02:07.8]} 19.
Qf6+ {[%clk 0:01:23.6]} 19... Kg8 {[%clk 0:02:07.2]} 20. Qc3 {[%clk 0:01:16.2]}
20... Re7 {[%clk 0:01:55.1]} 21. Nf6+ {[%clk 0:01:14.6]} 21... Kf8 {[%clk
0:01:54.2]} 22. Nxh7+ {[%clk 0:01:11.5]} 22... Kg8 {[%clk 0:01:52.8]} 23. Nf6+
{[%clk 0:01:12.4]} 23... Kf8 {[%clk 0:01:51.6]} 24. Nd5 {[%clk 0:01:07.7]} 24...
Qe5 {[%clk 0:01:47.8]} 25. Nxe7 {[%clk 0:01:07.3]} 25... Qxc3 {[%clk 0:01:48.2]}
26. bxc3 {[%clk 0:01:08.2]} 26... Kxe7 {[%clk 0:01:47.6]} 27. Re1+ {[%clk
0:01:08.4]} 27... Kd6 {[%clk 0:01:47]} 28. Rd1+ {[%clk 0:01:08.8]} 28... Kc5
{[%clk 0:01:46.2]} 29. Rd7 {[%clk 0:01:09.2]} 29... Re8 {[%clk 0:01:45.6]} 30.
h4 {[%clk 0:01:08.5]} 30... f5 {[%clk 0:01:45.3]} 31. Bf3 {[%clk 0:01:08.1]}
31... b5 {[%clk 0:01:31.5]} 32. Rxa7 {[%clk 0:01:06.5]} 32... Re6 {[%clk
0:01:32]} 33. Rg7 {[%clk 0:01:06.3]} 33... Kc4 {[%clk 0:01:31.5]} 34. Rc7 {[%clk
0:01:01.8]} 34... Kxc3 {[%clk 0:01:29.1]} 35. Rxc6+ {[%clk 0:01:01.4]} 35...
Rxc6 {[%clk 0:01:29.5]} 36. Bxc6 {[%clk 0:01:02.2]} 36... b4 {[%clk 0:01:29.5]}
37. Ba4 {[%clk 0:01:01.9]} 37... Kd4 {[%clk 0:01:29.9]} 38. Bb3 {[%clk
0:01:02.3]} 38... Ke5 {[%clk 0:01:30.3]} 39. g3 {[%clk 0:01:02.7]} 39... Ke4
{[%clk 0:01:30.5]} 40. Kg2 {[%clk 0:01:03.6]} 40... f4 {[%clk 0:01:30.5]} 41.
gxf4 {[%clk 0:01:02.8]} 41... Kxf4 {[%clk 0:01:31.4]} 42. Kh3 {[%clk 0:01:02.9]}
42... Kf3 {[%clk 0:01:31.6]} 43. Bf7 {[%clk 0:01:01.3]} 43... b3 {[%clk
0:01:30.2]} 44. axb3 {[%clk 0:01:00.1]} 1-0

[Event "*** SCC Grand Prix: Titled Tuesday Blitz"]
[Site "Chess.com"]
[Date "2020.07.14"]
[Round "1"]
[White "DenisQ"]
[Black "Sueetin"]
[Result "1-0"]
[WhiteElo "2651"]
[BlackElo "2333"]
[TimeControl "180+1"]
[EndTime "10:05:30 PDT"]
[Termination "DenisQ won by resignation"]

1. Nf3 {[%clk 0:01:29.6]} 1... d5 {[%clk 0:02:58.3]} 2. g3 {[%clk 0:01:30.5]}
2... g6 {[%clk 0:02:58.4]} 3. Bg2 {[%clk 0:01:30.1]} 3... Bg7 {[%clk 0:02:58.6]}
4. O-O {[%clk 0:01:31]} 4... e5 {[%clk 0:02:58.8]} 5. d4 {[%clk 0:01:31.6]} 5...
exd4 {[%clk 0:02:52.9]} 6. Nxd4 {[%clk 0:01:31]} 6... Nf6 {[%clk 0:02:41.6]} 7.
Nd2 {[%clk 0:01:28.4]} 7... O-O {[%clk 0:02:41.2]} 8. Re1 {[%clk 0:01:25.5]}
8... Re8 {[%clk 0:02:18.6]} 9. c4 {[%clk 0:01:24.8]} 9... c5 {[%clk 0:01:32.9]}
10. N4b3 {[%clk 0:01:23.9]} 10... b6 {[%clk 0:01:14.8]} 11. cxd5 {[%clk
0:01:21.8]} 11... Nxd5 {[%clk 0:01:14.9]} 12. Nc4 {[%clk 0:01:20]} 12... Bb7
{[%clk 0:01:15.3]} 13. e4 {[%clk 0:01:12]} 13... Nb4 {[%clk 0:01:14.3]} 14. Nd6
{[%clk 0:01:11.3]} 14... Re7 {[%clk 0:00:41]} 15. Nxb7 {[%clk 0:01:11.1]} 1-0

[Event "*** SCC Grand Prix: Titled Tuesday Blitz"]
[Site "Chess.com"]
[Date "2020.07.14"]
[Round "1"]
[White "Korchmar_Vasiliy"]
[Black "GM4life"]
[Result "1-0"]
[WhiteElo "2685"]
[BlackElo "2359"]
[TimeControl "180+1"]
[EndTime "10:05:31 PDT"]
[Termination "Korchmar_Vasiliy won by resignation"]

1. d4 {[%clk 0:03:00.9]} 1... Nf6 {[%clk 0:03:00.2]} 2. Nf3 {[%clk 0:03:00.1]}
2... d5 {[%clk 0:02:59.3]} 3. Bf4 {[%clk 0:03:00.2]} 3... c5 {[%clk 0:02:58.9]}
4. e3 {[%clk 0:03:00.5]} 4... Nc6 {[%clk 0:02:59.3]} 5. Nbd2 {[%clk 0:03:00.3]}
5... Qb6 {[%clk 0:02:58.3]} 6. dxc5 {[%clk 0:02:59.6]} 6... Qxb2 {[%clk
0:02:58.7]} 7. Rb1 {[%clk 0:03:00.1]} 7... Qc3 {[%clk 0:02:58.5]} 8. Bb5 {[%clk
0:03:00.5]} 8... Bf5 {[%clk 0:02:57]} 9. Nd4 {[%clk 0:02:47.8]} 9... Bd7 {[%clk
0:02:56.4]} 10. O-O {[%clk 0:02:24.9]} 10... e6 {[%clk 0:02:52.2]} 11. Bd3
{[%clk 0:02:18.9]} 11... Nxd4 {[%clk 0:02:34.2]} 12. exd4 {[%clk 0:02:19.8]}
12... Qxd4 {[%clk 0:02:34.4]} 13. Be3 {[%clk 0:02:12.9]} 13... Qh4 {[%clk
0:02:29]} 14. Rxb7 {[%clk 0:02:09.6]} 14... Be7 {[%clk 0:01:29.6]} 15. Nf3
{[%clk 0:02:08.5]} 15... Qh5 {[%clk 0:01:22.1]} 16. Bd4 {[%clk 0:02:03.3]} 16...
Rc8 {[%clk 0:01:05.4]} 17. Re1 {[%clk 0:01:43.7]} 17... Bc6 {[%clk 0:00:59.7]}
18. Rxa7 {[%clk 0:01:42.3]} 18... Bd8 {[%clk 0:00:53.3]} 19. Re5 {[%clk
0:01:26]} 19... Qg4 {[%clk 0:00:35.8]} 20. Rg5 {[%clk 0:01:25.8]} 20... Qf4
{[%clk 0:00:33.5]} 21. Rxg7 {[%clk 0:01:25.6]} 21... Kf8 {[%clk 0:00:08.5]} 22.
Raxf7+ {[%clk 0:01:22.1]} 22... Ke8 {[%clk 0:00:07.5]} 1-0